bitfinex/quotes_ETHUSD_20241109
["timestamp","ask_amount","ask_price","bid_price","bid_amount"]
[1731187895491,0.7784,3081.3,3080.4,0.8191]
[1731187895838,0.7784,3081.3,3080.4,1.20101]
[1731187897245,0.2784,3081.3,3080.5,3.064917]
[1731187903669,0.2784,3081.3,3080.5,3.0]
[1731187904670,0.30270099,3081.2,3080.5,3.0]
[1731187904841,0.2784,3081.3,3080.5,3.0]
[1731187905043,0.30269887,3081.2,3080.6,0.6857562]
[1731187905265,0.2784,3081.3,3080.6,0.6857562]
[1731187905568,0.30281659,3081.2,3080.6,0.6857562]
[1731187905768,0.2784,3081.3,3080.6,0.6857562]
[1731187905928,0.30281687,3081.2,3080.7,0.36857562]
[1731187906131,0.2784,3081.3,3080.7,0.36857562]
[1731187906360,0.30294898,3081.2,3080.7,0.36857562]
[1731187906570,0.30294898,3081.1,3080.6,0.6857562]
[1731187906727,0.58134898,3081.0,3080.2,3.8079]
[1731187907068,0.30294898,3080.9,3080.2,3.8079]
[1731187907253,0.2784,3081.0,3080.2,3.8079]
[1731187907567,0.30308857,3080.9,3080.3,0.7124013]
[1731187907867,0.2784,3081.0,3080.3,0.7124013]
[1731187908026,0.30302266,3080.9,3080.3,0.7124013]
[1731187908368,1.22695557,3081.5,3080.5,3.0]
[1731187908369,0.2784,3081.3,3080.5,3.0]
[1731187908676,0.30307038,3081.2,3080.6,0.36491537]
[1731187908972,0.30307038,3081.1,3080.6,0.36491537]
[1731187909122,0.2784,3081.3,3080.7,0.33649154]
[1731187909325,0.30314497,3081.2,3080.7,0.33649154]
[1731187909558,0.30314497,3081.1,3080.7,0.33649154]
[1731187909756,0.2784,3081.7,3080.9,0.7973]
[1731187909960,0.30317421,3081.6,3081.0,3.10767958]
[1731187910199,0.30317421,3081.5,3081.2,0.7973]
[1731187910320,0.2784,3082.0,3081.3,0.06490028]
[1731187910521,0.2784,3082.0,3081.2,0.7973]
[1731187910768,0.30312814,3081.9,3081.2,0.7973]
[1731187910935,0.30312814,3081.8,3081.3,0.37973]
[1731187911140,0.30312814,3081.7,3081.3,0.37973]
[1731187911356,0.30312814,3081.6,3081.3,0.37973]
[1731187911538,0.2784,3082.0,3081.3,0.37973]
[1731187911853,0.30303115,3081.9,3081.3,0.37973]
[1731187912025,0.30303115,3081.8,3081.3,0.37973]
[1731187912220,0.30303115,3081.7,3081.3,0.37973]
[1731187912421,0.2784,3082.0,3081.3,0.37973]
[1731187912660,0.30294522,3081.6,3081.3,0.37973]
[1731187912865,0.2784,3082.0,3081.3,0.37973]
[1731187913164,0.30295265,3081.9,3081.3,0.37973]
[1731187913326,0.30295265,3081.8,3081.3,0.37973]
[1731187913527,0.30295265,3081.7,3081.3,0.37973]
[1731187913768,0.30295265,3081.6,3081.3,0.37973]
[1731187913952,0.2784,3082.0,3081.0,0.38622154]
[1731187913953,0.2784,3081.8,3081.0,0.38622154]
[1731187914266,1.14014699,3081.7,3080.7,1.13549154]
[1731187914424,0.55882121,3081.6,3080.8,0.06490994]
[1731187914784,0.30281865,3081.5,3080.8,0.06490994]
[1731187914928,0.30281865,3081.4,3080.8,0.06490994]
[1731187915131,0.30281865,3081.3,3080.8,0.06490994]
[1731187915352,0.95535557,3081.7,3080.8,0.06490994]
[1731187915555,2.37757427,3081.6,3080.8,0.06490994]
[1731187915757,1.97899747,3081.5,3080.2,0.14212799]
[1731187916088,1.97899747,3081.5,3080.2,2.65655199]
[1731187916089,2.65595072,3081.4,3080.2,2.65655199]
[1731187916392,2.65595072,3081.4,3080.3,0.3455552]
[1731187916393,0.2784,3081.2,3080.3,0.3455552]
[1731187916591,0.30275084,3081.1,3080.3,0.3455552]
[1731187916889,0.30275084,3081.0,3080.3,0.3455552]
[1731187917090,0.30275084,3080.9,3080.3,0.3455552]
[1731187917653,0.2784,3080.7,3080.1,0.799]
[1731187919002,0.2784,3080.7,3080.2,0.06492035]
[1731187919193,0.2784,3080.7,3080.1,0.799]
[1731187921893,0.2784,3080.7,3080.2,0.30347207]
[1731187922201,0.2784,3080.7,3080.3,0.30347207]
[1731187922408,0.2784,3080.7,3080.4,0.30347207]
[1731187922695,0.2784,3080.7,3080.5,0.30347207]
[1731187922926,0.2784,3080.7,3080.6,0.30347207]
[1731187923105,0.30256977,3080.7,3080.6,1.10247207]
[1731187923308,0.67695557,3080.9,3080.6,1.16738482]
[1731187923523,0.67695557,3080.9,3080.8,6.45555199]
[1731187923688,0.67695557,3080.9,3080.8,7.44141745]
[1731187924385,0.67695557,3080.9,3080.8,7.50632503]
[1731187924619,1.01017865,3081.2,3081.0,0.799]
[1731187924801,0.2784,3082.3,3081.2,3.799]
[1731187925002,0.2784,3082.3,3081.3,0.36836452]
[1731187925003,1.96319101,3082.2,3081.3,0.36836452]
[1731187925290,0.2784,3082.3,3081.4,0.72020852]
[1731187925291,0.8413671,3082.1,3081.4,0.72020852]
[1731187925512,0.8413671,3082.0,3081.5,0.06489245]
[1731187925821,1.69587726,3082.5,3081.7,3.0]
[1731187926129,1.96349658,3082.4,3081.8,0.74078893]
[1731187926284,0.84149853,3082.3,3081.8,0.74078893]
[1731187926482,0.84149853,3082.2,3081.8,1.044261]
[1731187926685,1.97427726,3082.6,3081.8,1.044261]
[1731187926889,1.96355476,3082.5,3081.9,0.30290976]
[1731187927088,0.84152347,3082.4,3082.0,0.36779633]
[1731187927330,1.97427726,3082.6,3082.1,0.30290976]
[1731187927331,0.84152347,3082.3,3082.1,0.30290976]
[1731187927488,0.84152347,3082.2,3081.9,0.06488657]
[1731187927820,1.97427726,3082.6,3082.0,0.30276587]
[1731187928027,1.96345096,3082.5,3082.1,0.30276587]
[1731187928189,1.96345096,3082.4,3082.1,0.30276587]
[1731187928393,0.84147898,3082.3,3082.2,0.30276587]
[1731187929005,0.2784,3082.6,3081.9,0.30276587]
[1731187929309,0.84048073,3082.5,3082.0,0.36765118]
[1731187929512,0.84048073,3082.4,3082.1,0.30276587]
[1731187929711,0.2784,3082.6,3081.8,0.30276587]
[1731187929883,0.84041628,3082.5,3081.9,0.30276587]
[1731187930089,0.2784,3082.6,3082.0,0.30276587]
[1731187930303,0.8404177,3082.5,3082.1,0.30276587]
[1731187930507,0.2784,3082.6,3081.7,3.0]
[1731187930508,0.2784,3082.6,3081.8,0.30276587]
[1731187930817,0.83979612,3082.5,3081.9,0.30276587]
[1731187931022,0.2784,3082.6,3082.0,0.30276587]
[1731187931204,0.83978302,3082.5,3081.8,0.30276587]
[1731187931426,0.2784,3082.6,3081.7,3.0]
[1731187931427,0.83978302,3082.4,3081.9,0.30276587]
[1731187931627,0.2784,3082.6,3082.0,0.30276587]
[1731187931819,0.83971962,3082.5,3081.8,0.30276587]
[1731187932025,0.2784,3082.6,3081.9,0.30240333]
[1731187932249,0.83932573,3082.5,3081.9,0.30240333]
[1731187932454,0.2784,3082.6,3082.0,0.30240333]
[1731187932747,0.83932339,3082.5,3081.9,0.30240333]
[1731187932906,0.2784,3082.6,3082.0,0.30240333]
[1731187933101,0.83932178,3082.5,3081.9,0.30240333]
[1731187933354,0.2784,3082.6,3081.9,0.30240333]
[1731187933518,0.83928575,3082.5,3081.9,0.30240333]
[1731187933847,0.2784,3082.6,3081.9,0.30240333]
[1731187934071,0.83927142,3082.5,3081.9,0.30240333]
[1731187934209,0.2784,3082.6,3081.9,0.30240333]
[1731187934409,0.83906319,3082.5,3081.9,0.30240333]
[1731187934722,0.95495694,3082.6,3081.9,0.30240333]
[1731187934923,0.83918824,3082.5,3081.9,0.30240333]
[1731187935125,0.95495694,3082.6,3081.9,0.30240333]
[1731187935355,0.83919581,3082.5,3081.8,0.67583179]
[1731187935543,0.95495694,3082.6,3081.9,0.66983887]
[1731187935743,0.95495694,3082.6,3082.0,0.30224457]
[1731187936549,0.2784,3082.6,3081.9,0.66982775]
[1731187937048,0.95495694,3082.6,3081.9,0.66982775]
[1731187937350,0.2784,3082.6,3081.9,0.66982775]
[1731187937648,0.95495694,3082.6,3081.9,0.66982775]
[1731187937969,0.67655694,3082.4,3081.9,0.30224457]
[1731187938142,0.67655694,3082.4,3081.7,0.30227791]
[1731187938450,1.51496225,3082.3,3081.7,0.30227791]
[1731187938634,0.67655694,3082.3,3081.7,0.30227791]
[1731187940917,0.2784,3082.2,3080.7,0.42445672]
[1731187941121,0.95495694,3081.5,3080.4,0.8095]
[1731187941329,0.2784,3081.5,3080.5,0.87441669]
[1731187941533,0.2784,3081.5,3080.6,0.35309687]
[1731187941743,0.2784,3081.5,3080.8,0.8095]
[1731187942360,0.2784,3081.5,3080.8,3.8095]
[1731187942649,0.2784,3081.5,3080.8,0.8095]
[1731187943740,1.7934096,3081.5,3080.3,0.8095]
[1731187943930,1.7958517,3081.4,3080.4,0.38095]
[1731187944125,1.7958517,3081.4,3080.5,0.06491265]
[1731187944126,0.2784,3081.3,3080.5,0.06491265]
[1731187944326,0.67655694,3080.9,3079.5,0.8095]
[1731187944643,1.51489372,3080.8,3079.5,0.8095]
[1731187944845,1.51484456,3080.7,3079.5,0.8095]
[1731187945161,1.01501141,3080.9,3079.5,0.8095]
[1731187945162,0.67655694,3080.8,3079.6,0.3466052]
[1731187945317,0.83828309,3080.7,3079.6,0.3466052]
[1731187945523,0.67655694,3080.8,3079.6,0.3466052]
[1731187945724,1.51488562,3080.7,3079.6,0.3466052]
[1731187946032,0.83831356,3080.6,3079.6,0.3466052]
[1731187946366,0.67655694,3080.8,3079.6,0.3466052]
[1731187946662,0.96239315,3080.8,3079.6,0.3466052]
[1731187946861,0.83771064,3080.7,3079.6,0.3466052]
[1731187947071,0.96239315,3080.8,3079.6,0.3466052]
[1731187948155,0.28583621,3080.8,3079.6,0.3466052]
[1731187949572,0.55,3080.1,3078.7,0.7664]
[1731187949871,0.55,3080.1,3078.9,3.42295199]
[1731187950034,0.55,3080.1,3079.0,0.06494566]
[1731187950759,0.2784,3080.2,3079.4,0.7664]
[1731187950971,0.67655694,3080.6,3079.5,0.3422952]
[1731187950972,0.2784,3080.5,3079.5,0.3422952]
[1731187952474,0.55,3080.2,3078.6,3.42295199]
[1731187952628,0.55,3080.4,3078.6,3.42295199]
[1731187952629,0.55,3080.0,3078.6,3.42295199]
[1731187952963,0.2784,3079.9,3078.6,3.42295199]
[1731187953126,0.2784,3079.9,3078.7,0.64403475]
[1731187953327,0.55,3079.8,3078.7,0.64403475]
[1731187953559,0.55,3079.6,3078.7,0.30173955]
[1731187954062,0.55,3079.4,3078.3,3.43905199]
[1731187954265,0.55,3079.4,3078.4,0.30159283]
[1731187954429,0.55,3079.4,3078.3,0.7825]
[1731187955330,0.2784,3079.3,3078.0,3.43905199]
[1731187955641,0.2784,3079.3,3078.1,0.70997796]
[1731187955642,0.55,3079.2,3078.1,0.70997796]
[1731187955965,0.2784,3078.9,3078.1,0.30111143]
[1731187956169,0.55,3078.6,3077.1,2.65655199]
[1731187956375,0.2784,3078.7,3077.4,2.65655199]
[1731187956663,0.2784,3078.7,3077.5,0.2656552]
[1731187956868,0.2784,3078.7,3077.5,0.56648076]
[1731187957251,0.2784,3078.7,3077.5,3.56648076]
[1731187957443,0.2784,3078.7,3077.5,3.2656552]
[1731187958133,0.2784,3078.7,3077.5,0.2656552]
[1731187958336,0.2784,3078.7,3077.6,0.29222072]
[1731187970754,0.2784,3078.7,3078.0,2.65655199]
[1731187971092,0.2784,3078.7,3078.1,0.3660072]
[1731187971278,0.2784,3079.5,3078.3,2.65655199]
[1731187971451,0.2784,3079.5,3078.4,0.6419533]
[1731187972607,0.55,3079.4,3078.5,0.30139224]
[1731187973104,0.55,3079.4,3078.4,0.64230744]
[1731187973309,0.55,3079.4,3078.5,0.30139224]
[1731187973876,0.55,3079.4,3078.6,0.30139224]
[1731187974210,0.55,3079.4,3078.4,0.3409152]
[1731187974211,0.55,3079.4,3078.5,0.30139224]
[1731187974423,0.55,3079.4,3078.6,0.30139224]
[1731187974570,0.55,3079.4,3078.7,0.30139224]
[1731187974901,0.55,3079.4,3078.8,0.30139224]
[1731187975115,0.55,3079.4,3078.5,0.30139224]
[1731187975275,0.55,3079.4,3078.6,0.30139224]
[1731187975473,0.55,3079.4,3078.7,0.30139224]
[1731187975702,0.55,3079.4,3078.8,0.30139224]
[1731187975871,0.55,3079.4,3078.9,0.30139224]
[1731187976198,0.55,3079.4,3078.5,0.30201464]
[1731187976511,0.55,3079.4,3078.6,0.30215764]
[1731187976678,0.55,3079.6,3078.7,0.30215764]
[1731187976882,0.2784,3079.3,3078.8,0.30215764]
[1731187977085,0.2784,3078.9,3078.0,0.30215764]
[1731187977284,0.2784,3078.9,3078.1,0.30215764]
[1731187977499,0.2784,3078.9,3078.2,0.30215764]
[1731187977811,0.2784,3078.9,3077.6,6.72767271]
[1731187977973,0.2784,3078.9,3077.7,0.67276727]
[1731187978783,0.2784,3078.6,3076.5,0.7789]
[1731187979115,0.2784,3078.2,3076.8,2.65655199]
[1731187979354,0.2784,3078.2,3076.9,0.2656552]
[1731187980116,0.2784,3078.2,3076.9,3.2656552]
[1731187984119,0.55,3078.3,3076.9,3.2656552]
[1731187984120,0.2784,3078.0,3076.9,0.2656552]
[1731187984323,0.2784,3077.8,3076.7,3.0]
[1731187985219,0.2784,3077.6,3076.5,1.42442793]
[1731187985404,0.2784,3077.6,3076.5,4.08097992]
[1731187986504,0.2784,3077.6,3077.1,2.65655199]
[1731187986753,0.2784,3077.6,3077.2,0.2656552]
[1731187986907,0.55,3078.3,3077.3,0.0649878]
[1731187987103,0.55,3078.4,3077.3,0.0649878]
[1731187987346,0.2784,3078.3,3077.3,0.0649878]
[1731187988345,0.2784,3078.3,3077.2,0.2656552]
[1731187988550,0.2784,3078.3,3077.3,0.37011072]
[1731187988743,0.2784,3078.3,3077.4,2.72153445]
[1731187989328,0.2784,3078.3,3077.4,2.72153446]
[1731187990908,0.2784,3078.3,3077.4,2.65655199]
[1731187993111,0.2784,3078.9,3078.0,2.65655199]
[1731187993413,0.2784,3078.9,3078.1,1.12011967]
[1731187994210,0.2784,3078.9,3078.1,4.12011967]
[1731187994410,0.2784,3078.9,3078.3,2.65655199]
[1731187994612,0.2784,3078.9,3078.4,0.06496191]
[1731187994849,0.2784,3078.9,3078.2,2.7215139]
[1731187995052,0.2784,3078.9,3078.3,0.35110139]
[1731187995260,0.2784,3078.9,3078.4,0.06496063]
[1731187995857,0.04873714,3079.0,3078.5,2.65655199]
[1731187996011,0.04873714,3079.0,3078.3,0.35110139]
[1731187996012,0.04873714,3079.0,3078.8,2.65655199]
[1731187996429,0.04873714,3079.0,3078.7,0.8139]
[1731187996764,0.04873714,3079.0,3078.6,3.0]
[1731187998015,0.04873714,3079.0,3078.8,2.65655199]
[1731188000438,0.04873714,3079.0,3078.9,3.0]
[1731188000760,0.04873714,3079.0,3078.9,4.44450613]
[1731188001052,0.2784,3079.8,3078.9,4.44450613]
[1731188001265,0.2784,3080.1,3079.6,3.0]
[1731188002117,0.2784,3080.1,3078.9,1.3795552]
[1731188002348,0.67655694,3080.1,3078.9,3.0]
[1731188002641,0.2784,3079.9,3078.9,3.0]
[1731188002815,0.2784,3079.9,3079.1,2.65655199]
[1731188004348,0.2784,3079.9,3078.9,3.0]
[1731188006869,0.2784,3079.9,3079.1,2.65655199]
[1731188007163,0.2784,3079.9,3079.1,3.00359719]
[1731188008076,0.2784,3079.9,3079.1,0.3470452]
[1731188008435,0.2784,3079.9,3079.1,3.00359719]
[1731188014503,0.2784,3079.9,3079.1,0.3470452]
[1731188015305,0.2784,3079.9,3078.5,0.64446174]
[1731188015306,0.85132617,3079.8,3078.5,2.65655199]
[1731188015625,0.55,3079.4,3078.1,0.7657]
[1731188015768,0.2784,3079.2,3077.9,0.63592333]
[1731188015971,0.2784,3079.2,3078.0,2.65655199]
[1731188016156,0.55,3079.1,3078.0,2.65655199]
[1731188016362,0.55,3079.1,3077.8,3.42225199]
[1731188016363,0.57991973,3079.0,3077.8,3.42225199]
[1731188016587,0.2784,3079.0,3077.8,3.42225199]
[1731188016787,0.30150419,3078.9,3077.8,0.7657]
[1731188016987,0.2784,3078.8,3077.9,0.3422252]
[1731188017777,0.30160047,3078.7,3077.9,0.3422252]
[1731188018106,0.2784,3078.6,3077.9,0.3422252]
[1731188020902,0.2284,3078.6,3077.9,0.3422252]
[1731188021560,0.30176591,3078.5,3077.9,0.3422252]
[1731188021755,0.2284,3078.6,3077.9,0.3422252]
[1731188021995,0.30176557,3078.5,3077.9,0.3422252]
[1731188022202,0.55,3078.4,3077.5,3.0]
[1731188022494,0.67655694,3078.8,3077.5,3.0]
[1731188022495,0.55,3078.8,3077.5,3.0]
[1731188022793,0.55,3078.6,3077.2,1.41856695]
[1731188023107,0.55,3078.4,3077.1,2.65655199]
[1731188023256,0.30173319,3078.3,3077.1,2.65655199]
[1731188023457,0.30173319,3078.2,3077.1,2.65655199]
[1731188023658,0.30173319,3078.1,3077.0,0.65210118]
[1731188023888,0.2284,3077.9,3077.0,0.33086532]
[1731188025460,0.2284,3077.9,3076.8,2.65655199]
[1731188026397,0.2284,3077.9,3076.6,0.7657]
[1731188026700,0.2284,3077.9,3076.8,3.0]
[1731188030261,0.2284,3077.9,3076.3,0.80713737]
[1731188030599,0.2284,3077.9,3076.8,3.0]
[1731188030907,0.2284,3077.9,3077.0,2.65655199]
[1731188031063,0.2284,3077.9,3077.1,3.06498562]
[1731188031264,0.2284,3077.9,3077.1,3.0]
[1731188031664,0.2284,3077.9,3076.9,0.5656552]
[1731188032367,0.2284,3077.9,3076.8,2.65655199]
[1731188033199,0.2284,3077.9,3077.1,2.65655199]
[1731188036602,0.2284,3077.9,3077.2,3.0]
[1731188037610,0.2284,3077.9,3076.9,3.0]
[1731188037765,0.2284,3077.9,3077.0,0.06499085]
[1731188037962,0.2284,3077.9,3077.1,0.30649909]
[1731188038615,0.2284,3077.9,3075.0,0.1]
[1731188038616,0.2284,3077.7,3076.0,0.0166156]
[1731188038775,0.2284,3077.5,3076.3,2.65655199]
[1731188041478,0.2284,3077.5,3076.4,3.0]
[1731188041819,0.2284,3077.5,3076.5,0.5656552]
[1731188042614,0.55,3077.4,3076.5,0.5656552]
[1731188042923,0.2284,3077.2,3076.1,3.0]
[1731188043418,0.2284,3077.0,3076.0,0.0166156]
[1731188044110,0.2284,3077.0,3076.1,3.0]
[1731188045786,0.2284,3077.0,3076.0,0.0166156]
[1731188046182,0.2284,3077.0,3076.0,0.31827716]
[1731188046386,0.2284,3076.8,3076.0,0.0166156]
[1731188047009,0.55,3076.7,3076.0,0.0166156]
[1731188047324,0.2284,3076.6,3076.0,0.0166156]
[1731188048779,0.2284,3076.6,3076.0,2.67316759]
[1731188048983,0.2284,3076.6,3076.1,0.33232957]
[1731188051231,0.2284,3076.6,3076.1,0.26731676]
[1731188051594,0.2284,3076.6,3076.3,2.65655199]
[1731188051807,0.04875978,3077.0,3076.4,3.8143]
[1731188052017,0.04875978,3077.0,3076.9,5.65655199]
[1731188052180,0.04875978,3077.0,3076.9,6.22220719]
[1731188052927,1.42665412,3078.3,3076.9,4.3799552]
[1731188053099,1.42665412,3078.3,3077.4,2.65655199]
[1731188054426,1.42665412,3078.3,3076.9,0.5656552]
[1731188054631,0.30214139,3078.2,3076.8,3.0]
[1731188054833,0.0464,3078.0,3076.8,3.0]
[1731188055148,0.0464,3077.8,3076.4,2.65655199]
[1731188055429,0.0464,3077.6,3076.5,0.2656552]
[1731188056417,0.0464,3077.2,3076.1,0.26731676]
[1731188056620,0.0464,3077.0,3076.0,0.0166156]
[1731188058599,0.0464,3076.8,3076.0,0.0166156]
[1731188061599,0.0464,3076.6,3076.0,0.0166156]
[1731188065521,0.0464,3076.6,3076.1,2.65655199]
[1731188065719,0.0464,3077.0,3076.2,0.41298391]
[1731188065926,0.0464,3077.0,3076.2,0.34797676]
[1731188067954,0.0464,3077.0,3076.2,3.34797676]
[1731188076763,0.0464,3077.0,3076.3,0.06500366]
[1731188077138,0.0464,3077.0,3076.2,3.34797676]
[1731188077352,0.0464,3077.0,3076.4,2.65655199]
[1731188077542,0.04876222,3077.1,3076.7,2.65655199]
[1731188077753,0.04876222,3077.1,3076.8,0.06499621]
[1731188078747,0.04876222,3077.1,3076.7,3.41405199]
[1731188079070,0.04876222,3077.1,3076.7,2.65655199]
[1731188079275,0.04876222,3077.1,3076.8,0.56895826]
[1731188079481,0.04876222,3077.1,3076.9,0.30330306]
[1731188079665,0.04876222,3077.1,3077.0,0.30330306]
[1731188084385,0.04876222,3077.1,3077.0,0.30351458]
[1731188086249,0.39785329,3077.1,3077.0,0.30351458]
[1731188087554,0.39785329,3077.1,3077.0,0.30355621]
[1731188087764,1.23840183,3077.1,3077.0,0.30355621]
[1731188087970,2.46495877,3077.1,3077.0,0.30355621]
[1731188088318,2.46495877,3077.1,3076.0,0.66954527]
[1731188088319,0.0464,3076.7,3076.1,0.30355621]
[1731188088496,0.0464,3076.7,3076.2,0.30355621]
[1731188088652,1.82067727,3076.6,3076.3,0.30355621]
[1731188088851,0.30265408,3076.5,3076.4,0.30355621]
[1731188089986,1.18935093,3076.5,3076.4,0.30355621]
[1731188090169,2.15517933,3076.5,3076.1,0.30355621]
[1731188090496,0.30265408,3076.4,3076.2,0.30355621]
[1731188090654,0.30265408,3076.4,3076.0,0.0166156]
[1731188090655,1.0122284,3076.5,3076.3,0.30355621]
[1731188090867,1.34568983,3076.4,3076.0,0.0166156]
[1731188091088,0.30258385,3076.3,3076.1,0.30361533]
[1731188091293,0.30258385,3076.3,3076.2,0.30361533]
[1731188091593,0.30256231,3076.3,3076.2,0.30361533]
[1731188092321,0.72389264,3076.5,3076.2,0.30361533]
[1731188092476,0.30257391,3076.4,3076.3,0.30361533]
[1731188092879,0.0464,3076.5,3076.3,0.30361533]
[1731188093108,0.0464,3076.5,3076.4,0.30361533]
[1731188093414,0.67749264,3076.7,3076.4,0.30361533]
[1731188093624,0.0464,3076.9,3076.5,0.30361533]
[1731188093918,0.30260079,3076.8,3076.6,0.30361533]
[1731188094219,0.0464,3076.9,3076.7,0.30361533]
[1731188094415,0.0464,3076.9,3076.1,3.0]
[1731188094416,0.0464,3076.9,3076.8,0.30362078]
[1731188094624,1.86667291,3076.9,3076.8,0.30363812]
[1731188095021,1.86659266,3076.9,3076.2,0.30363812]
[1731188095222,0.30263958,3076.8,3076.3,0.30363812]
[1731188095380,0.30263958,3076.7,3076.4,0.30363812]
[1731188095738,0.72376319,3076.9,3076.5,0.30363812]
[1731188096018,0.30263387,3076.8,3076.6,0.30363812]
[1731188096221,0.72376319,3076.9,3076.7,0.30363812]
[1731188096381,0.30260868,3076.8,3076.0,0.0166156]
[1731188096583,0.30260868,3076.7,3076.1,0.30368668]
[1731188096778,0.72376319,3076.9,3076.2,0.30368668]
[1731188096975,0.30261251,3076.8,3076.3,0.30368668]
[1731188097180,0.0464,3076.9,3076.4,0.30368668]
[1731188097376,0.30261065,3076.8,3076.5,0.30368668]
[1731188097581,0.0464,3076.9,3076.6,0.30368668]
[1731188097884,0.30260856,3076.8,3076.7,0.30368668]
[1731188098084,0.30260856,3076.8,3076.0,0.0166156]
[1731188098329,0.30259952,3076.7,3076.1,0.30367011]
[1731188098613,0.72376319,3076.9,3076.2,0.30367011]
[1731188098814,0.30260128,3076.8,3076.3,0.30367011]
[1731188099027,0.72376319,3076.9,3076.4,0.30367011]
[1731188099233,0.30259646,3076.8,3076.5,0.30367011]
[1731188099381,0.72376319,3076.9,3076.6,0.30367011]
[1731188099591,1.82054475,3076.8,3076.7,0.30367011]
[1731188100236,1.14318156,3076.8,3076.7,0.30367011]
[1731188100527,0.30259653,3076.8,3076.7,0.30367011]
[1731188100727,0.30259653,3076.8,3076.7,0.30363555]
[1731188100728,0.84048551,3076.8,3076.7,0.30363555]
[1731188101030,0.72376319,3076.9,3076.7,0.30363555]
[1731188101217,0.72376319,3076.9,3076.8,0.30363555]
[1731188101530,1.86629783,3076.9,3076.8,0.30363555]
[1731188101721,1.86630618,3076.9,3076.8,0.30363555]
[1731188101929,1.56392463,3076.9,3076.1,3.0]
[1731188102239,1.56392463,3076.9,3076.2,0.870955]
[1731188102240,1.81990605,3076.8,3076.2,0.870955]
[1731188102533,1.81990605,3076.8,3076.3,0.30363824]
[1731188102534,0.67737154,3076.6,3076.3,0.30363824]
[1731188102829,0.30235116,3076.5,3076.4,0.30363824]
[1731188103032,1.14244547,3076.5,3076.4,0.30363824]
[1731188103238,1.14244876,3076.5,3076.4,0.30363824]
[1731188103405,1.47247119,3076.5,3076.4,0.30363824]
[1731188103604,2.48887517,3076.5,3076.4,0.30363824]
[1731188103815,1.47247119,3076.5,3076.4,0.30363824]
[1731188104016,1.47247119,3076.5,3076.1,0.30363824]
[1731188104017,2.48887517,3076.5,3076.1,0.30363824]
[1731188104221,1.81968973,3076.4,3076.2,0.30363824]
[1731188104445,0.97959213,3076.4,3076.3,0.30363824]
[1731188104744,0.67724097,3076.6,3076.3,0.30363824]
[1731188105038,0.72364097,3076.8,3076.4,0.30363824]
[1731188105337,0.72364097,3076.8,3076.5,0.30363824]
[1731188105537,0.0464,3076.8,3076.6,0.30363824]
[1731188105843,0.72364097,3076.8,3076.7,0.30363824]
[1731188106008,1.86597716,3076.8,3076.7,0.30363824]
[1731188106703,1.18873619,3076.8,3076.7,0.30363824]
[1731188106901,1.18873619,3076.8,3076.3,0.30363824]
[1731188107107,1.81961909,3076.7,3076.4,0.30363824]
[1731188107313,0.67729583,3076.7,3076.5,0.30363824]
[1731188107532,0.67729583,3076.7,3076.6,0.30363824]
[1731188107737,1.81944268,3076.7,3076.6,0.30363824]
[1731188108242,0.97958804,3076.7,3076.6,0.30363824]
[1731188108542,1.81936693,3076.7,3076.6,0.30363824]
[1731188109008,0.72369583,3076.8,3076.6,0.30363824]
[1731188109208,0.72369583,3076.8,3076.7,0.30363824]
[1731188109544,0.30221456,3076.8,3076.7,0.30363824]
[1731188109723,0.67729583,3076.9,3076.7,0.30363824]
[1731188109922,1.14213067,3076.8,3076.2,0.7815]
[1731188110125,0.67729583,3076.8,3076.3,0.70849755]
[1731188110320,0.67729583,3076.8,3076.4,0.30361587]
[1731188110622,0.04876222,3077.1,3076.7,3.8315]
[1731188110919,0.04876222,3077.1,3077.0,5.65655199]
[1731188111051,0.04876222,3077.1,3077.0,6.79166786]
[1731188111365,0.04876222,3077.1,3077.0,7.47733397]
[1731188112067,0.04876222,3077.1,3077.0,1.82078198]
[1731188112270,0.67729583,3078.0,3077.1,0.8315]
[1731188112438,0.67729583,3078.4,3077.9,2.65655199]
[1731188112641,1.01640398,3078.5,3078.0,0.30361587]
[1731188112642,0.67729583,3078.5,3078.0,0.30361587]
[1731188112959,0.67729583,3078.5,3078.1,0.30361587]
[1731188113166,0.67729583,3078.5,3078.2,0.30361587]
[1731188113385,0.67729583,3078.5,3078.3,0.30361587]
[1731188113561,0.67729583,3078.5,3078.0,0.30361587]
[1731188113724,0.67729583,3078.5,3078.1,0.30361587]
[1731188113930,0.67729583,3078.7,3078.2,2.96016786]
[1731188114260,0.67729583,3078.7,3078.0,3.38566398]
[1731188114261,0.67729583,3079.1,3078.4,0.8188]
[1731188114474,1.14070806,3079.0,3078.5,0.30361587]
[1731188114779,0.67729583,3078.8,3078.0,0.8188]
[1731188114932,1.14062114,3078.7,3078.1,0.30271397]
[1731188115123,0.67729583,3078.8,3078.0,0.8188]
[1731188115348,1.81783921,3078.7,3078.1,0.30269929]
[1731188115534,0.67729583,3078.7,3078.1,0.30269929]
[1731188115739,1.51605975,3078.6,3077.5,0.8188]
[1731188115966,1.81765035,3078.5,3077.6,0.30256895]
[1731188116132,0.67729583,3078.5,3077.6,0.30256895]
[1731188116327,0.67729583,3078.6,3077.6,0.30256895]
[1731188116639,1.14019966,3078.5,3077.6,0.30256895]
[1731188116843,0.30079095,3078.5,3077.6,0.30256895]
[1731188117039,0.30079095,3078.5,3077.5,0.8188]
[1731188117357,0.0464,3078.4,3077.6,0.30245568]
[1731188117523,0.72369583,3078.4,3077.6,0.30245568]
[1731188117728,0.5964,3078.1,3077.2,0.30245568]
[1731188117960,2.11220051,3078.1,3077.2,0.30245568]
[1731188118164,1.27369583,3078.1,3077.2,0.30245568]
[1731188118874,0.67729583,3077.9,3077.2,0.30245568]
[1731188119169,0.67729583,3077.9,3076.7,3.47535199]
[1731188119328,1.81708759,3077.8,3076.7,3.82288719]
[1731188119527,0.67729583,3077.8,3076.7,3.82288719]
[1731188119751,0.67729583,3077.8,3076.7,1.1663352]
[1731188119952,1.86336265,3077.7,3076.7,0.8188]
[1731188120162,1.02507243,3077.7,3076.7,0.8188]
[1731188120384,0.0464,3077.7,3076.7,0.8188]
[1731188120541,0.72369583,3077.7,3076.7,0.8188]
[1731188120741,1.86583074,3077.6,3076.7,0.8188]
[1731188120945,0.72605168,3077.6,3076.7,0.8188]
[1731188121953,0.30145787,3077.5,3076.7,0.8188]
[1731188122175,0.83835991,3077.5,3076.2,3.8188]
[1731188122472,0.0464,3077.4,3076.2,0.8188]
[1731188122764,0.67729583,3077.3,3076.2,0.8188]